bitfinex/quotes_SOLUSD_20250520
["timestamp","ask_amount","ask_price","bid_price","bid_amount"]
[1747760810388,20.50210021,166.65,166.56,26.0]
[1747760810890,41.93303962,166.63,166.56,26.0]
[1747760811275,20.50210021,166.65,166.55,26.0]
[1747760811481,41.93303962,166.64,166.55,26.0]
[1747760812411,41.93303962,166.64,166.56,18.64964886]
[1747760813783,6.00132029,166.63,166.56,18.64964886]
[1747760814390,47.93435991,166.63,166.56,18.64964886]
[1747760816090,62.93766063,166.63,166.57,26.0]
[1747760816295,21.00462101,166.63,166.57,26.0]
[1747760817595,47.93435991,166.63,166.57,26.0]
[1747760817799,62.93766063,166.63,166.57,26.0]
[1747760818601,21.00462101,166.63,166.57,26.0]
[1747760820301,21.00462101,166.63,166.55,27.0]
[1747760822594,41.93303962,166.62,166.55,27.0]
[1747760822905,41.93303962,166.61,166.54,26.0]
[1747760823793,27.654371,166.61,166.54,26.0]
[1747760824504,48.66277436,166.6,166.52,27.0]
[1747760824712,27.654371,166.58,166.5,27.0]
[1747760825006,6.00240096,166.6,166.54,26.0]
[1747760825381,6.00060006,166.65,166.59,18.64964886]
[1747760825684,5.99880023,166.7,166.63,26.0]
[1747760825895,27.654371,166.67,166.6,27.0]
[1747760826507,14.99848811,166.69,166.6,27.0]
[1747760826508,42.65285911,166.69,166.6,27.0]
[1747760826678,48.65201922,166.69,166.6,27.0]
[1747760826899,20.99764822,166.69,166.61,18.64964886]
[1747760827083,20.99764822,166.69,166.63,26.0]
[1747760827284,5.99916011,166.69,166.64,18.64964886]
[1747760828703,20.9970604,166.69,166.63,26.0]
[1747760830610,14.99790029,166.69,166.63,26.0]
[1747760831297,5.99880023,166.7,166.64,18.64964886]
[1747760831690,5.99880023,166.7,166.65,26.98]
[1747760831886,5.99880023,166.7,166.66,26.0]
[1747760832090,5.99880023,166.7,166.67,26.0]
[1747760832805,48.64837081,166.72,166.67,26.0]
[1747760835915,20.99399981,166.72,166.67,26.0]
[1747760836396,20.99399981,166.72,166.67,29.04920553]
[1747760837098,27.654371,166.71,166.67,29.04920553]
[1747760837617,27.654371,166.71,166.68,3.39494423]
[1747760838004,48.64837081,166.72,166.68,3.39494423]
[1747760838205,20.99399981,166.72,166.68,3.39494423]
[1747760838509,27.654371,166.71,166.68,3.39494423]
[1747760838812,5.99880023,166.7,166.68,3.39494423]
[1747760839209,5.99880023,166.7,166.69,3.39494423]
[1747760843027,20.99399981,166.72,166.69,3.39494423]
[1747760844022,20.99399981,166.72,166.7,3.39494423]
[1747760845320,20.99399981,166.72,166.71,3.39494423]
[1747760846019,48.64837081,166.72,166.71,3.39494423]
[1747760846218,14.9959192,166.72,166.71,3.39494423]
[1747760846424,42.6502902,166.72,166.71,3.39494423]
[1747760846928,14.9959192,166.72,166.71,3.39494423]
[1747760847918,5.99736116,166.74,166.71,3.39494423]
[1747760848420,27.654371,166.75,166.71,3.39494423]
[1747760849214,27.654371,166.75,166.72,3.39494423]
[1747760849724,17.25527711,166.74,166.72,3.39494423]
[1747760850407,50.96534356,166.78,166.68,1.6209]
[1747760850408,23.25299797,166.73,166.7,3.39494423]
[1747760850608,17.25527711,166.72,166.7,3.39494423]
[1747760850824,23.25299797,166.73,166.7,3.39494423]
[1747760851313,17.25527711,166.71,166.7,3.39494423]
[1747760851510,17.25527711,166.71,166.68,26.98]
[1747760851711,17.25527711,166.7,166.64,61.8637]
[1747760851898,17.25527711,166.7,166.64,87.8637]
[1747760852622,20.9970604,166.69,166.67,26.0]
[1747760853423,20.9970604,166.69,166.65,3.41348914]
[1747760853424,38.25233751,166.69,166.65,3.41348914]
[1747760853725,38.25233751,166.69,166.65,26.0]
[1747760853920,38.25233751,166.69,166.64,3.02450898]
[1747760853921,17.25527711,166.68,166.64,3.02450898]
[1747760854103,17.25527711,166.66,166.61,60.3]
[1747760854311,50.99286098,166.69,166.63,30.0]
[1747760854312,17.25527711,166.65,166.63,30.0]
[1747760854530,6.00096015,166.64,166.63,30.0]
[1747760855028,23.25623726,166.64,166.63,30.0]
[1747760857422,38.25863764,166.64,166.57,26.98]
[1747760857600,17.25527711,166.63,166.58,30.0]
[1747760857803,27.64542011,166.63,166.58,30.0]
[1747760858004,48.64878064,166.64,166.58,30.0]
[1747760858510,30.00314577,166.65,166.58,30.0]
[1747760858714,27.64542011,166.63,166.58,30.0]
[1747760858915,27.64542011,166.64,166.58,30.0]
[1747760859827,27.64542011,166.63,166.59,3.41691096]
[1747760860713,6.00168047,166.62,166.59,3.41691096]
[1747760860915,6.00168047,166.62,166.58,33.06554393]
[1747760861119,21.00588164,166.62,166.58,33.06554393]
[1747760861429,27.64542011,166.61,166.58,30.0]
[1747760862030,27.64542011,166.6,166.58,30.0]
[1747760862329,21.00588164,166.62,166.58,30.0]
[1747760862536,6.00168047,166.62,166.58,56.0]
[1747760862723,21.00273359,166.65,166.58,56.0]
[1747760863539,27.64542011,166.64,166.58,56.0]
[1747760864034,27.64542011,166.64,166.59,3.41812546]
[1747760865555,21.00273359,166.65,166.59,3.41812546]
[1747760865556,6.00132029,166.63,166.59,3.41812546]
[1747760865858,5.99988,166.67,166.62,26.0]
[1747760866134,20.99958,166.67,166.62,26.0]
[1747760866533,20.99958,166.67,166.63,26.0]
[1747760867642,20.99639814,166.7,166.63,26.0]
[1747760868816,48.64181825,166.7,166.63,26.0]
[1747760870821,48.64181825,166.7,166.64,3.41732724]
[1747760871435,20.99639814,166.7,166.64,3.41732724]
[1747760871742,20.99639814,166.7,166.64,30.39732724]
[1747760872243,20.99639814,166.7,166.65,3.41732724]
[1747760873243,48.64181825,166.7,166.65,3.41732724]
[1747760874220,27.64542011,166.69,166.65,3.41732724]
[1747760874842,48.64181825,166.7,166.65,3.41732724]
[1747760876945,20.99639814,166.7,166.65,3.41732724]
[1747760877448,20.99639814,166.7,166.66,3.41732724]
[1747760878051,14.99759791,166.7,166.66,3.41732724]
[1747760878449,5.99808061,166.72,166.67,26.0]
[1747760878638,5.99808061,166.72,166.67,29.41732724]
[1747760879149,20.99328214,166.72,166.67,29.41732724]
[1747760879526,20.99328214,166.72,166.68,3.41732724]
[1747760880146,14.99520153,166.72,166.68,3.41732724]
[1747760880645,14.99520153,166.72,166.69,3.41732724]
[1747760881762,32.25326026,166.72,166.69,3.41732724]
[1747760882052,17.25805873,166.71,166.66,26.0]
[1747760882236,17.25805873,166.71,166.63,26.98]
[1747760882441,14.99520153,166.72,166.64,18.64964886]
[1747760882643,14.99520153,166.72,166.65,26.0]
[1747760882835,14.99520153,166.72,166.67,26.0]
[1747760883035,14.99520153,166.72,166.67,52.98]
[1747760883547,14.99520153,166.72,166.68,3.41369239]
[1747760883935,20.98950523,166.75,166.68,3.41369239]
[1747760884273,68.23257145,166.75,166.68,3.41369239]
[1747760884642,68.23257145,166.75,166.69,3.41369239]
[1747760885237,17.25805873,166.72,166.69,3.41369239]
[1747760885557,50.97451272,166.75,166.67,52.98]
[1747760885558,17.25805873,166.74,166.67,52.98]
[1747760886254,20.99202302,166.73,166.67,52.98]
[1747760886648,68.23868608,166.73,166.68,3.41471998]
[1747760886853,17.25805873,166.72,166.68,3.41471998]
[1747760887261,68.23868608,166.73,166.68,3.41471998]
[1747760888343,68.23868608,166.73,166.67,52.98]
[1747760888545,68.23868608,166.73,166.67,26.0]
[1747760889370,17.25805873,166.72,166.67,26.0]
[1747760890346,20.99454141,166.71,166.67,26.0]
[1747760892250,29.98860433,166.73,166.67,26.0]
[1747760892462,47.24666306,166.73,166.67,26.0]
[1747760893768,17.25805873,166.72,166.67,26.0]
[1747760894458,20.99454141,166.71,166.67,26.0]
[1747760895061,17.25805873,166.69,166.65,26.98]
[1747760895251,17.25805873,166.67,166.61,32.28]
[1747760895564,17.25805873,166.64,166.6,26.98]
[1747760896093,17.25805873,166.64,166.58,65.62195438]
[1747760896260,17.25805873,166.64,166.59,26.0]
[1747760896467,17.25805873,166.63,166.59,29.42367539]
[1747760896645,17.25805873,166.64,166.59,29.42367539]
[1747760896849,17.25805873,166.61,166.59,3.42367539]
[1747760897047,26.98,166.66,166.58,30.0]
[1747760897048,17.25805873,166.6,166.58,30.0]
[1747760898063,1.5718,166.63,166.58,30.0]
[1747760898064,17.25805873,166.59,166.58,30.0]
[1747760898273,1.5718,166.63,166.58,30.0]
[1747760898583,38.26394037,166.62,166.58,30.0]
[1747760899244,38.26394037,166.62,166.55,26.0]
[1747760900070,38.26394037,166.62,166.56,3.42387881]
[1747760900365,17.25805873,166.61,166.56,3.42387881]
[1747760900570,21.00840336,166.6,166.56,3.42387881]
[1747760901172,21.00840336,166.6,166.57,3.42387881]
[1747760901771,6.00240096,166.6,166.57,29.42387881]
[1747760902450,15.0060024,166.6,166.57,26.0]
[1747760904673,38.26141926,166.64,166.57,26.0]
[1747760904979,21.00336053,166.64,166.57,26.0]
[1747760905166,21.00336053,166.64,166.57,52.98]
[1747760905368,21.00336053,166.64,166.58,18.64964886]
[1747760905369,6.00096015,166.64,166.58,18.64964886]
[1747760905874,21.00336053,166.64,166.57,26.98]
[1747760906176,38.26141926,166.64,166.59,3.42023195]
[1747760906365,21.00336053,166.64,166.59,3.42023195]
[1747760906775,15.00240038,166.64,166.59,3.42023195]
[1747760907474,15.00240038,166.64,166.57,52.98]
[1747760908459,15.00240038,166.64,166.58,3.42061192]
[1747760908858,15.00240038,166.64,166.63,17.2730208]
[1747760909183,32.27542118,166.64,166.6,17.2730208]
[1747760909480,17.2730208,166.62,166.57,43.2730208]
[1747760909978,17.2730208,166.61,166.55,26.98]
[1747760910178,17.2730208,166.61,166.56,17.2730208]
[1747760910380,17.2730208,166.61,166.57,17.2730208]
[1747760910959,21.00840336,166.6,166.57,17.2730208]
[1747760911955,21.00840336,166.6,166.58,17.2730208]
[1747760912976,21.00840336,166.6,166.59,17.2730208]
[1747760912977,15.0060024,166.6,166.59,17.2730208]
[1747760914060,15.0060024,166.6,166.58,17.2730208]
[1747760914671,15.0060024,166.6,166.57,17.2730208]
[1747760914988,15.0060024,166.6,166.58,17.2730208]
[1747760915385,15.0060024,166.6,166.59,17.2730208]
[1747760915684,15.0060024,166.6,166.58,17.2730208]
[1747760915866,15.0060024,166.6,166.57,17.2730208]
[1747760916765,15.0060024,166.6,166.55,26.98]
[1747760916985,15.0060024,166.6,166.57,17.2730208]
[1747760917184,15.0060024,166.6,166.55,26.98]
[1747760917485,30.01020346,166.61,166.58,17.2730208]
[1747760917877,30.01020346,166.61,166.55,26.98]
[1747760918190,17.2730208,166.63,166.58,17.2730208]
[1747760918693,21.00336053,166.64,166.61,17.2730208]
[1747760918869,21.00336053,166.64,166.62,17.2730208]
[1747760919065,21.00336053,166.64,166.63,17.2730208]
[1747760919264,15.00046468,166.67,166.63,17.2730208]
[1747760919491,15.00046468,166.67,166.59,54.6091]
[1747760919704,15.00046468,166.67,166.65,17.2730208]
[1747760919870,15.00046468,166.67,166.66,17.2730208]
[1747760920874,17.2730208,166.69,166.64,17.2730208]
[1747760921292,50.98674343,166.71,166.66,17.2730208]
[1747760921477,68.25976423,166.71,166.66,17.2730208]
[1747760921669,17.2730208,166.69,166.65,17.2730208]
[1747760922173,17.2730208,166.7,166.61,27.0]
[1747760922371,17.2730208,166.7,166.65,17.2730208]
[1747760922774,20.9970604,166.69,166.66,17.2730208]
[1747760922968,20.9970604,166.69,166.68,17.2730208]
[1747760923402,5.99916011,166.69,166.68,17.2730208]
[1747760924178,5.99916011,166.69,166.66,27.0]
[1747760924897,14.99576563,166.72,166.66,27.0]
[1747760926218,14.99576563,166.72,166.67,30.0]
[1747760926998,14.99576563,166.72,166.66,27.0]
[1747760928172,32.2536059,166.72,166.63,26.0]
[1747760928474,17.25784027,166.7,166.64,60.39459195]
[1747760928682,17.25784027,166.69,166.64,33.41459195]
[1747760929009,20.99958,166.67,166.64,33.41459195]
[1747760929497,20.99958,166.67,166.64,3.41459195]
[1747760929699,20.99958,166.67,166.62,57.98]
[1747760929907,20.99958,166.67,166.63,30.0]
[1747760932329,20.99958,166.67,166.57,56.07894886]
[1747760932330,17.25784027,166.65,166.58,26.98]
[1747760932505,50.99898001,166.67,166.59,56.0]
[1747760932506,68.25682028,166.67,166.59,56.0]
[1747760932707,68.25682028,166.67,166.59,30.0]
[1747760932708,20.99958,166.67,166.59,30.0]
[1747760933027,20.99958,166.67,166.59,56.0]
[1747760933421,38.25742027,166.67,166.59,56.0]
[1747760933635,38.25742027,166.67,166.6,3.41833553]
[1747760934222,17.25784027,166.66,166.6,3.41833553]
[1747760935503,51.00510051,166.65,166.59,30.0]
[1747760935701,17.25784027,166.63,166.59,30.0]
[1747760935899,17.25784027,166.64,166.59,30.0]
[1747760936407,68.26294078,166.65,166.59,30.0]
[1747760936912,17.25784027,166.64,166.59,30.0]
[1747760937092,17.25784027,166.63,166.59,30.0]
[1747760937523,21.00588164,166.62,166.59,30.0]
[1747760938224,21.00588164,166.62,166.56,52.98]
[1747760938711,21.00588164,166.62,166.57,3.4221709]
[1747760939503,15.00420117,166.62,166.57,3.4221709]
[1747760940304,15.00420117,166.62,166.58,3.4221709]
[1747760941718,15.00420117,166.62,166.57,3.4221709]
[1747760942107,32.26204144,166.62,166.57,3.4221709]
[1747760942619,38.26372191,166.62,166.55,31.0]
[1747760943007,68.27212426,166.62,166.55,57.0]
[1747760943410,51.01428399,166.62,166.55,57.0]
[1747760943825,21.00588164,166.62,166.58,26.0]
[1747760944017,21.00588164,166.62,166.58,52.98]
[1747760944018,6.00168047,166.62,166.58,52.98]
[1747760944326,5.99988,166.67,166.62,26.0]
[1747760944526,5.99988,166.67,166.63,26.98]
[1747760944697,20.99202302,166.73,166.63,26.98]
[1747760945028,20.99202302,166.73,166.66,26.0]
[1747760947516,20.99202302,166.73,166.67,22.06566581]
[1747760947705,20.99202302,166.73,166.68,26.98]
[1747760948533,20.98824658,166.76,166.71,26.0]
[1747760950416,20.98447148,166.79,166.71,26.0]
[1747760950827,17.25784027,166.78,166.71,26.0]
[1747760951326,50.96228789,166.79,166.72,18.64964886]
[1747760951327,20.98447148,166.79,166.72,18.64964886]
[1747760951829,20.98447148,166.79,166.73,26.98]
[1747760952506,53.21828378,166.85,166.74,44.64964886]
[1747760952709,17.25784027,166.84,166.74,44.64964886]
[1747760953218,17.25784027,166.82,166.76,26.0]
[1747760954010,17.25784027,166.8,166.74,26.0]
[1747760954412,20.98447148,166.79,166.74,26.0]
[1747760956113,17.25784027,166.78,166.73,57.88]
[1747760956414,17.25784027,166.78,166.71,26.98]
[1747760956621,5.9962823,166.77,166.72,26.0]
[1747760956827,20.98698806,166.77,166.72,26.0]
[1747760957433,5.9962823,166.77,166.72,26.0]
[1747760958533,44.95055439,166.85,166.74,26.0]
[1747760958735,50.94396164,166.85,166.74,26.0]
[1747760958919,17.25784027,166.83,166.74,26.0]
[1747760959119,50.94396164,166.85,166.74,26.0]
[1747760959315,68.20180191,166.85,166.75,18.64964886]
[1747760959516,68.20180191,166.85,166.76,26.98]
[1747760959747,78.52127439,166.85,166.76,26.98]
[1747760961244,27.57731275,166.82,166.76,26.98]
[1747760961419,27.57731275,166.84,166.76,26.98]
[1747760961823,80.9109979,166.85,166.76,26.98]
[1747760962127,27.57731275,166.84,166.76,26.98]
[1747760962326,80.9109979,166.85,166.76,26.98]
[1747760962531,80.9109979,166.85,166.77,26.0]
[1747760963130,27.57731275,166.84,166.77,26.0]
[1747760963729,108.48831065,166.85,166.77,26.0]
[1747760964740,27.57731275,166.82,166.76,26.98]
[1747760965044,27.57731275,166.78,166.7,8.0326]
[1747760965246,27.57731275,166.77,166.7,28.4615]
[1747760965728,27.57731275,166.78,166.7,28.4615]
[1747760966546,27.57731275,166.77,166.7,28.4615]
[1747760966722,27.57731275,166.75,166.68,30.88]
[1747760967045,27.57731275,166.74,166.68,30.88]
[1747760967947,27.57731275,166.75,166.68,30.88]
[1747760968153,27.57731275,166.71,166.65,26.96]
[1747760968526,27.57731275,166.72,166.65,26.96]
[1747760968849,20.99454141,166.71,166.65,26.96]
[1747760969242,20.99454141,166.71,166.63,57.84]
[1747760970956,5.9984404,166.71,166.65,18.64964886]
[1747760971456,5.9984404,166.71,166.65,18.79181043]
[1747760972141,29.9832094,166.76,166.65,18.79181043]
[1747760972449,20.98698806,166.77,166.67,18.64964886]
[1747760972647,20.98698806,166.77,166.69,18.64964886]
[1747760973354,48.56430081,166.77,166.68,26.98]
[1747760973659,20.98698806,166.77,166.68,26.98]
[1747760974536,27.57731275,166.76,166.68,26.98]
[1747760975255,27.57731275,166.74,166.68,26.98]
[1747760975446,27.57731275,166.75,166.68,26.98]
[1747760975642,27.57731275,166.76,166.68,26.98]
[1747760975846,50.96839958,166.77,166.68,26.98]
[1747760976050,27.57731275,166.76,166.68,26.98]
[1747760976241,50.96839958,166.77,166.68,26.98]
[1747760976441,27.57731275,166.76,166.68,26.98]
[1747760976645,20.98950523,166.75,166.68,26.98]
[1747760977242,20.98950523,166.75,166.69,18.64964886]
[1747760978559,14.99250374,166.75,166.69,18.64964886]
[1747760979154,14.99250374,166.75,166.68,26.98]
[1747760982058,5.99664188,166.76,166.71,18.64964886]
[1747760982750,5.99664188,166.76,166.7,1.5039]
[1747760982751,20.98824658,166.76,166.7,1.5039]
[1747760983357,14.9916047,166.76,166.7,1.5039]
[1747760984447,14.9916047,166.76,166.69,30.84]
[1747760985054,32.24357136,166.76,166.69,30.84]
[1747760985359,20.99076406,166.74,166.69,30.84]
[1747760986855,50.97756986,166.74,166.69,30.84]
[1747760987164,50.97756986,166.74,166.68,52.98]
[1747760987565,20.99076406,166.74,166.68,52.98]
[1747760988072,20.99076406,166.74,166.68,26.0]
[1747760988645,14.9934029,166.74,166.68,26.0]
[1747760988880,14.9934029,166.74,166.69,3.40306557]
[1747760989162,32.24536956,166.74,166.69,3.40306557]
[1747760989370,14.9934029,166.74,166.69,3.40306557]
[1747760989766,14.9934029,166.74,166.68,26.0]
[1747760990650,20.99076406,166.74,166.68,26.0]
[1747760992273,17.25196666,166.73,166.69,3.40128427]
[1747760993365,17.25196666,166.73,166.65,26.0]
[1747760993748,17.25196666,166.73,166.67,30.0]
[1747760994163,20.99328214,166.72,166.67,30.0]
[1747760994559,5.99808061,166.72,166.67,56.0]
[1747760995872,5.99808061,166.72,166.68,3.39914507]
[1747760996180,14.99273161,166.75,166.68,3.39914507]
[1747760996981,14.99273161,166.75,166.69,3.39914507]
[1747760997350,14.99273161,166.75,166.69,30.37914507]
[1747760998164,14.99273161,166.75,166.7,3.39914507]
[1747760999680,14.99273161,166.75,166.69,26.98]
[1747760999870,14.99273161,166.75,166.7,12.7]
[1747761000174,35.97769382,166.77,166.7,38.7]
[1747761000391,35.97769382,166.77,166.7,26.0]
[1747761000674,35.97769382,166.77,166.71,18.64964886]
[1747761000675,5.9962823,166.77,166.71,18.64964886]
[1747761001465,5.9962823,166.77,166.72,3.39377248]
[1747761001668,20.98698806,166.77,166.72,3.39377248]
[1747761002174,14.99070576,166.77,166.72,3.39377248]
[1747761002561,14.99070576,166.77,166.72,26.0]
[1747761003572,14.99070576,166.77,166.7,56.84]
[1747761003890,14.99070576,166.77,166.71,12.7]
[1747761005371,14.99070576,166.77,166.72,3.39753448]
[1747761005691,14.99070576,166.77,166.72,33.39753448]
[1747761006196,14.99070576,166.77,166.72,30.0]
[1747761006972,14.99070576,166.77,166.73,26.0]
[1747761007171,5.99556328,166.79,166.73,26.0]
[1747761007384,5.99556328,166.79,166.74,26.98]
[1747761007889,5.99556328,166.79,166.74,30.37712088]
[1747761008191,14.98865499,166.8,166.74,30.37712088]
[1747761008787,5.99448507,166.82,166.75,3.39712088]
[1747761009778,14.98621268,166.82,166.75,3.39712088]
[1747761010177,17.25196666,166.81,166.76,3.39712088]
[1747761010375,14.98621268,166.82,166.76,3.39712088]
[1747761010575,17.25196666,166.81,166.76,3.39712088]
[1747761010877,14.98621268,166.82,166.76,3.39712088]
[1747761011200,17.25196666,166.81,166.76,3.39712088]
[1747761011697,17.25196666,166.81,166.73,52.96]
[1747761012188,20.98321342,166.8,166.73,52.96]
[1747761012388,17.25196666,166.79,166.73,26.0]
[1747761012894,17.25196666,166.79,166.74,3.39886147]
[1747761013890,17.25196666,166.78,166.74,3.39886147]
[1747761014075,20.9857297,166.78,166.72,56.96]
[1747761014887,5.99592277,166.78,166.73,22.05039987]
[1747761015274,5.99592277,166.78,166.75,26.0]
[1747761016300,20.98257539,166.81,166.76,3.40075101]
[1747761017092,20.98257539,166.81,166.77,3.40075101]
[1747761018295,20.98257539,166.81,166.75,26.0]
[1747761018597,14.98773096,166.81,166.75,26.0]
[1747761019300,14.98773096,166.81,166.76,3.39803037]
[1747761020395,14.98517612,166.84,166.77,45.60964886]
[1747761020894,5.99340725,166.85,166.78,26.0]
[1747761021096,5.99340725,166.85,166.77,45.60964886]
[1747761021097,5.99340725,166.85,166.8,26.0]
[1747761022289,14.98213602,166.87,166.8,26.0]
[1747761023009,14.98213602,166.87,166.81,3.39803037]
[1747761023184,17.25196666,166.86,166.81,3.39803037]
[1747761023507,17.25196666,166.84,166.81,3.39803037]
[1747761023683,17.25196666,166.82,166.81,3.39803037]
[1747761024617,20.98195551,166.81,166.73,52.96]
[1747761024985,20.98195551,166.81,166.74,18.64964886]
[1747761025190,5.99484443,166.81,166.75,0.14216157]
[1747761025609,5.99484443,166.81,166.77,18.64964886]
[1747761025796,5.99484443,166.81,166.76,3.39039691]
[1747761026525,14.98503244,166.84,166.77,18.64964886]
[1747761027013,14.98503244,166.84,166.78,30.35039691]
[1747761027526,35.94105666,166.94,166.82,18.64964886]
[1747761027726,35.94105666,166.94,166.83,26.96]
[1747761028027,27.538688,166.93,166.83,26.96]
[1747761028529,20.96812844,166.92,166.83,45.60964886]
[1747761028731,27.538688,166.91,166.81,1.5263]
[1747761028897,20.96812844,166.92,166.83,18.64964886]
[1747761029322,48.50681644,166.92,166.82,26.96]
[1747761029526,20.96812844,166.92,166.82,26.96]
[1747761029826,20.96812844,166.92,166.83,18.64964886]
[1747761029998,20.96812844,166.92,166.83,44.64964886]
[1747761030205,20.96812844,166.92,166.83,71.60964886]
[1747761030510,35.92814371,167.0,166.87,18.64964886]
[1747761030699,50.89820359,167.0,166.89,18.64964886]
[1747761030900,50.89820359,167.0,166.9,26.96]
[1747761031097,20.95808383,167.0,166.9,26.96]
[1747761031826,5.98802395,167.0,166.94,18.64964886]
[1747761032337,20.95808383,167.0,166.92,18.64964886]
[1747761032631,5.98802395,167.0,166.92,22.84319708]
[1747761033007,5.98802395,167.0,166.95,26.0]
[1747761034327,5.98802395,167.0,166.96,18.64964886]
[1747761034526,14.96791421,167.03,166.96,18.64964886]
[1747761034737,14.96791421,167.03,166.95,26.0]
[1747761034900,14.96791421,167.03,166.93,18.64964886]
[1747761035110,14.96791421,167.03,166.92,18.64964886]
[1747761035547,14.96791421,167.03,166.92,21.66669955]
[1747761035756,45.22791421,167.03,166.95,26.0]
[1747761036049,14.96791421,167.03,166.95,26.0]
[1747761036509,50.88960492,167.03,166.95,26.0]
[1747761037017,78.42829292,167.03,166.95,26.0]
[1747761037211,50.88960492,167.03,166.95,26.0]
[1747761037920,78.42829292,167.03,166.95,26.0]
[1747761038335,78.42829292,167.03,166.91,26.96]
[1747761038336,27.538688,167.02,166.91,26.96]
[1747761038649,27.538688,167.02,166.93,26.0]
[1747761038817,20.95682892,167.01,166.93,26.0]
[1747761040118,78.43384396,167.01,166.93,26.0]
[1747761040321,27.538688,166.98,166.88,7.6235]
[1747761040537,58.718688,166.98,166.91,26.0]
[1747761040840,20.96184942,166.97,166.91,26.0]
[1747761041416,48.50053742,166.97,166.91,26.0]
[1747761041631,20.96184942,166.97,166.91,26.0]
[1747761042121,5.98909983,166.97,166.92,18.64964886]
[1747761042320,5.98909983,166.97,166.91,26.0]
[1747761042844,5.98909983,166.97,166.92,18.64964886]
[1747761044038,20.95682892,167.01,166.92,18.64964886]
[1747761044236,48.49551692,167.01,166.92,18.64964886]
[1747761044624,20.95682892,167.01,166.92,18.64964886]
[1747761045854,78.43384396,167.01,166.91,26.0]
[1747761046147,50.89515596,167.01,166.91,26.0]
[1747761046353,27.538688,166.98,166.91,26.0]
[1747761046643,27.538688,166.99,166.88,10.59357757]
[1747761046943,27.538688,166.98,166.88,7.6235]
[1747761047148,27.538688,166.96,166.88,1.5717]
[1747761047355,27.538688,166.94,166.87,26.94]
[1747761047543,27.538688,166.94,166.87,52.94]
[1747761047738,17.2144137,166.95,166.87,26.94]
[1747761047948,20.96561638,166.94,166.85,18.64964886]
[1747761048156,20.96561638,166.94,166.85,48.57935288]
[1747761048331,20.96561638,166.94,166.86,26.0]
[1747761048533,20.96561638,166.94,166.85,45.58964886]
[1747761048947,20.96561638,166.94,166.85,52.94]
[1747761049127,20.96561638,166.94,166.86,18.64964886]
[1747761049328,20.96561638,166.94,166.88,26.0]
[1747761050148,14.97544027,166.94,166.88,26.0]
[1747761051433,5.98945855,166.96,166.88,44.64964886]
[1747761052051,20.95933887,166.99,166.88,44.64964886]
[1747761052234,48.49829008,166.99,166.88,44.64964886]
[1747761052438,78.44020276,166.99,166.88,44.64964886]
[1747761052941,78.44020276,166.99,166.92,26.0]
[1747761053354,50.90125155,166.99,166.92,26.0]
[1747761054729,78.44020276,166.99,166.92,26.0]
[1747761054943,27.53895121,166.98,166.92,26.0]
[1747761055440,78.44020276,166.99,166.92,26.0]
[1747761056447,106.84316423,166.99,166.82,26.94]
[1747761056653,27.53895121,166.93,166.83,18.64964886]
[1747761056962,58.12,166.96,166.86,26.0]
[1747761057143,27.53895121,166.94,166.86,26.0]
[1747761058045,48.50331179,166.95,166.86,26.0]
[1747761058246,78.45239834,166.95,166.86,26.0]
[1747761059054,27.53895121,166.94,166.86,26.0]
[1747761059431,50.91344713,166.95,166.86,26.0]
[1747761059650,78.45239834,166.95,166.86,26.0]
[1747761059857,20.96436058,166.95,166.87,45.58964886]
[1747761060169,20.96059407,166.98,166.9,26.0]
[1747761060631,5.98874116,166.98,166.91,18.64964886]
[1747761061444,5.98874116,166.98,166.92,26.94]
[1747761062050,20.95753568,167.01,166.92,26.94]
[1747761062250,20.95753568,167.01,166.95,26.0]
[1747761063136,48.49648689,167.01,166.95,26.0]
[1747761063337,20.95753568,167.01,166.95,26.0]
[1747761063838,48.49648689,167.01,166.95,26.0]
[1747761064058,20.95753568,167.01,166.95,26.0]
[1747761064637,48.49648689,167.01,166.95,26.0]
[1747761064944,27.53895121,166.99,166.92,26.94]
[1747761065159,27.53895121,166.98,166.89,45.58964886]
[1747761065357,27.53895121,166.97,166.89,26.94]
[1747761065562,27.53895121,166.96,166.89,26.94]
[1747761065951,27.53895121,166.96,166.89,52.94]